[Event "Early-Titled-Tuesday-Blitz-May-07-2024"]
[Site "Chess.com"]
[Date "2024.05.07"]
[Round "4"]
[White "valeriocarnicelli"]
[Black "KnightDuta"]
[Result "1-0"]
[WhiteElo "2566"]
[BlackElo "2730"]
[TimeControl "180+1"]
[EndTime "8:44:00 PDT"]
[Termination "valeriocarnicelli won on time"]

1. e4 {[%clk 0:03:00.9]} 1... d5 {[%clk 0:02:57.4]} 2. exd5 {[%clk 0:03:00.6]}
2... Nf6 {[%clk 0:02:57.9]} 3. d4 {[%clk 0:02:58.4]} 3... Nxd5 {[%clk
0:02:58.3]} 4. c4 {[%clk 0:02:58.4]} 4... Nb6 {[%clk 0:02:58.5]} 5. Nf3 {[%clk
0:02:59.1]} 5... Bg4 {[%clk 0:02:58.3]} 6. Be3 {[%clk 0:02:53.6]} 6... e5 {[%clk
0:02:48.3]} 7. dxe5 {[%clk 0:02:50]} 7... Qxd1+ {[%clk 0:02:49.2]} 8. Kxd1
{[%clk 0:02:50.9]} 8... Nc6 {[%clk 0:02:48.5]} 9. Be2 {[%clk 0:02:42.1]} 9...
O-O-O+ {[%clk 0:02:46.9]} 10. Nbd2 {[%clk 0:02:26.3]} 10... Bb4 {[%clk
0:02:28.5]} 11. Kc1 {[%clk 0:02:01.9]} 11... Rhe8 {[%clk 0:01:59.8]} 12. h3
{[%clk 0:01:21.8]} 12... Bxd2+ {[%clk 0:01:42.2]} 13. Bxd2 {[%clk 0:01:22.7]}
13... Bxf3 {[%clk 0:01:42.6]} 14. Bxf3 {[%clk 0:01:20.5]} 14... Nxc4 {[%clk
0:01:28.8]} 15. Bxc6 {[%clk 0:01:09.5]} 15... bxc6 {[%clk 0:01:26.8]} 16. Bc3
{[%clk 0:01:09.7]} 16... Nxe5 {[%clk 0:01:20.3]} 17. Kc2 {[%clk 0:01:09.3]}
17... Ng6 {[%clk 0:01:15.8]} 18. Rhe1 {[%clk 0:01:05.3]} 18... Nf4 {[%clk
0:01:06.5]} 19. Bxg7 {[%clk 0:00:39.4]} 19... Nxg2 {[%clk 0:01:05.4]} 20. Rxe8
{[%clk 0:00:36.2]} 20... Rxe8 {[%clk 0:01:06.3]} 21. Rd1 {[%clk 0:00:32.8]}
21... Nf4 {[%clk 0:00:54.7]} 22. h4 {[%clk 0:00:33]} 22... Nd5 {[%clk
0:00:52.3]} 23. a3 {[%clk 0:00:28]} 23... Re4 {[%clk 0:00:46]} 24. h5 {[%clk
0:00:23.4]} 24... Rf4 {[%clk 0:00:43.2]} 25. Rd2 {[%clk 0:00:20.3]} 25... a5
{[%clk 0:00:43.5]} 26. h6 {[%clk 0:00:19.9]} 26... Kd7 {[%clk 0:00:40.3]} 27.
Re2 {[%clk 0:00:20]} 27... f6 {[%clk 0:00:34.4]} 28. Bf8 {[%clk 0:00:19.5]}
28... Rh4 {[%clk 0:00:32.5]} 29. Bg7 {[%clk 0:00:19.7]} 29... Rf4 {[%clk
0:00:32.3]} 30. Rd2 {[%clk 0:00:19.8]} 30... Ke6 {[%clk 0:00:30.7]} 31. Re2+
{[%clk 0:00:20.4]} 31... Kf7 {[%clk 0:00:31.2]} 32. Rd2 {[%clk 0:00:20.1]} 32...
Re4 {[%clk 0:00:29.8]} 33. Kb3 {[%clk 0:00:16.4]} 33... a4+ {[%clk 0:00:29.7]}
34. Kc2 {[%clk 0:00:17.1]} 34... Ke6 {[%clk 0:00:24]} 35. Kd3 {[%clk 0:00:16.7]}
35... Rh4 {[%clk 0:00:24.1]} 36. Re2+ {[%clk 0:00:17]} 36... Kd7 {[%clk
0:00:24.5]} 37. Rc2 {[%clk 0:00:16.7]} 37... Rf4 {[%clk 0:00:20.8]} 38. Re2
{[%clk 0:00:16]} 38... Rf3+ {[%clk 0:00:19.6]} 39. Kc2 {[%clk 0:00:16.2]} 39...
Rb3 {[%clk 0:00:19.7]} 40. Rd2 {[%clk 0:00:16.2]} 40... Ke6 {[%clk 0:00:18.1]}
41. Rd4 {[%clk 0:00:16]} 41... Rf3 {[%clk 0:00:17.1]} 42. Re4+ {[%clk
0:00:16.2]} 42... Kd6 {[%clk 0:00:13.2]} 43. Rxa4 {[%clk 0:00:17.1]} 43... Rxf2+
{[%clk 0:00:13.1]} 44. Kb1 {[%clk 0:00:17.7]} 44... f5 {[%clk 0:00:12.7]} 45.
Ra8 {[%clk 0:00:17.5]} 45... f4 {[%clk 0:00:12.6]} 46. Rh8 {[%clk 0:00:15.6]}
46... f3 {[%clk 0:00:11.7]} 47. Rxh7 {[%clk 0:00:16.2]} 47... Rf1+ {[%clk
0:00:12.3]} 48. Ka2 {[%clk 0:00:16.8]} 48... Ke6 {[%clk 0:00:11.8]} 49. Rh8
{[%clk 0:00:16.5]} 49... Rh1 {[%clk 0:00:10.1]} 50. Rf8 {[%clk 0:00:15.6]} 50...
Rh3 {[%clk 0:00:10.1]} 51. Rxf3 {[%clk 0:00:08.5]} 51... Rxf3 {[%clk 0:00:07.9]}
52. h7 {[%clk 0:00:09]} 52... Rh3 {[%clk 0:00:05.1]} 53. h8=Q {[%clk 0:00:09.1]}
53... Rxh8 {[%clk 0:00:06]} 54. Bxh8 {[%clk 0:00:10]} 54... Nb6 {[%clk
0:00:06.3]} 55. Kb3 {[%clk 0:00:09.5]} 55... c5 {[%clk 0:00:06.6]} 56. a4 {[%clk
0:00:09.8]} 56... Kd5 {[%clk 0:00:07]} 57. a5 {[%clk 0:00:09.9]} 57... Na8
{[%clk 0:00:06.7]} 58. Bc3 {[%clk 0:00:08.3]} 58... Kc6 {[%clk 0:00:07.6]} 59.
Kc4 {[%clk 0:00:08.1]} 59... Kb7 {[%clk 0:00:06.8]} 60. Kxc5 {[%clk 0:00:06.2]}
60... c6 {[%clk 0:00:07.1]} 61. Be5 {[%clk 0:00:06]} 61... Ka6 {[%clk
0:00:04.8]} 62. b4 {[%clk 0:00:06.1]} 62... Kb7 {[%clk 0:00:05.2]} 63. Bf4
{[%clk 0:00:06.3]} 63... Ka6 {[%clk 0:00:04.2]} 64. Kxc6 {[%clk 0:00:05.8]}
64... Ka7 {[%clk 0:00:04.8]} 65. b5 {[%clk 0:00:05.8]} 1-0

[Event "Early-Titled-Tuesday-Blitz-May-07-2024"]
[Site "Chess.com"]
[Date "2024.05.07"]
[Round "4"]
[White "Barbix1"]
[Black "Masterisback04"]
[Result "1-0"]
[WhiteElo "2275"]
[BlackElo "2008"]
[TimeControl "180+1"]
[EndTime "8:44:03 PDT"]
[Termination "Barbix1 won on time"]

1. d4 {[%clk 0:03:00.9]} 1... Nf6 {[%clk 0:02:59.5]} 2. c4 {[%clk 0:03:00.8]}
2... g6 {[%clk 0:02:59.1]} 3. Nc3 {[%clk 0:02:58.1]} 3... Bg7 {[%clk 0:02:58]}
4. e4 {[%clk 0:02:58.3]} 4... d6 {[%clk 0:02:58]} 5. h3 {[%clk 0:02:57.9]} 5...
O-O {[%clk 0:02:56.9]} 6. Be3 {[%clk 0:02:57.7]} 6... a6 {[%clk 0:02:56.3]} 7.
g4 {[%clk 0:02:52.7]} 7... b5 {[%clk 0:02:51.1]} 8. cxb5 {[%clk 0:02:50.3]} 8...
axb5 {[%clk 0:02:45.4]} 9. Bxb5 {[%clk 0:02:49.4]} 9... Bb7 {[%clk 0:02:45.1]}
10. Qc2 {[%clk 0:02:27.2]} 10... c6 {[%clk 0:01:49.2]} 11. Bc4 {[%clk
0:02:12.4]} 11... d5 {[%clk 0:00:58.4]} 12. exd5 {[%clk 0:02:11.5]} 12... Nxd5
{[%clk 0:00:56]} 13. Nxd5 {[%clk 0:02:08]} 13... cxd5 {[%clk 0:00:56]} 14. Bd3
{[%clk 0:01:41.8]} 14... Nc6 {[%clk 0:00:55.3]} 15. Ne2 {[%clk 0:01:37.5]} 15...
e5 {[%clk 0:00:51.9]} 16. O-O {[%clk 0:01:18.9]} 16... Qh4 {[%clk 0:00:45]} 17.
Kh2 {[%clk 0:01:10.5]} 17... exd4 {[%clk 0:00:12.9]} 18. Bf4 {[%clk 0:01:10.6]}
18... Be5 {[%clk 0:00:12.8]} 19. Qd2 {[%clk 0:01:06.8]} 19... Rfe8 {[%clk
0:00:05.6]} 20. Bb5 {[%clk 0:00:48.4]} 20... Bxf4+ {[%clk 0:00:04.1]} 21. Qxf4
{[%clk 0:00:49.3]} 21... Re6 {[%clk 0:00:02.9]} 22. Bxc6 {[%clk 0:00:34.1]}
22... Rxc6 {[%clk 0:00:03.8]} 23. Nxd4 {[%clk 0:00:32.7]} 23... Rf6 {[%clk
0:00:03.7]} 24. Qg3 {[%clk 0:00:23]} 24... Qxg3+ {[%clk 0:00:03.7]} 25. Kxg3
{[%clk 0:00:18.2]} 25... Ra4 {[%clk 0:00:03.4]} 26. Rfd1 {[%clk 0:00:17.5]}
26... h6 {[%clk 0:00:02.6]} 27. b3 {[%clk 0:00:16.6]} 27... Rb4 {[%clk
0:00:02.5]} 28. a3 {[%clk 0:00:15.8]} 28... Rbb6 {[%clk 0:00:02.4]} 29. f4
{[%clk 0:00:15.9]} 29... Ba6 {[%clk 0:00:02.4]} 30. a4 {[%clk 0:00:15.5]} 30...
Rb4 {[%clk 0:00:01.7]} 31. Rac1 {[%clk 0:00:13.6]} 31... Rb8 {[%clk 0:00:01.9]}
32. Rc6 {[%clk 0:00:12.2]} 32... Rxc6 {[%clk 0:00:01.7]} 33. Nxc6 {[%clk
0:00:13.1]} 33... Rb6 {[%clk 0:00:02.3]} 34. Nd4 {[%clk 0:00:12.7]} 34... Rb4
{[%clk 0:00:01.9]} 35. Kf3 {[%clk 0:00:13.2]} 35... Kg7 {[%clk 0:00:01.8]} 36.
Ke3 {[%clk 0:00:13.6]} 36... Bc8 {[%clk 0:00:01.2]} 37. Rc1 {[%clk 0:00:13.9]}
37... Bd7 {[%clk 0:00:01.6]} 38. Rc5 {[%clk 0:00:13.8]} 38... Be8 {[%clk
0:00:02]} 39. Rxd5 {[%clk 0:00:13.9]} 39... Rb8 {[%clk 0:00:01.5]} 40. Rc5
{[%clk 0:00:13.5]} 40... Kf8 {[%clk 0:00:02.1]} 41. a5 {[%clk 0:00:13.6]} 41...
Ke7 {[%clk 0:00:02.2]} 42. Rc4 {[%clk 0:00:13.9]} 42... Bd7 {[%clk 0:00:01.7]}
43. b4 {[%clk 0:00:14.1]} 43... Kd6 {[%clk 0:00:01.8]} 44. Kd3 {[%clk
0:00:13.4]} 44... Bc8 {[%clk 0:00:01.9]} 45. Kc3 {[%clk 0:00:13.7]} 45... Bd7
{[%clk 0:00:01.9]} 46. Rc5 {[%clk 0:00:14.1]} 46... g5 {[%clk 0:00:02.1]} 47.
fxg5 {[%clk 0:00:13.4]} 47... hxg5 {[%clk 0:00:03]} 48. Rxg5 {[%clk 0:00:13.6]}
48... Rc8+ {[%clk 0:00:03]} 49. Kb3 {[%clk 0:00:13.3]} 49... Rh8 {[%clk
0:00:03.9]} 50. Nf5+ {[%clk 0:00:13.2]} 50... Kc7 {[%clk 0:00:02.7]} 51. h4
{[%clk 0:00:13.3]} 51... Be6+ {[%clk 0:00:02.9]} 52. Kc3 {[%clk 0:00:13]} 52...
Rd8 {[%clk 0:00:03.8]} 53. Nd4 {[%clk 0:00:12.8]} 53... Bd5 {[%clk 0:00:03.6]}
54. Rf5 {[%clk 0:00:12.3]} 54... Kb7 {[%clk 0:00:03]} 55. Rf6 {[%clk 0:00:12]}
55... Rc8+ {[%clk 0:00:02.6]} 56. Kd3 {[%clk 0:00:11.6]} 56... Bc4+ {[%clk
0:00:03.5]} 57. Ke4 {[%clk 0:00:11.4]} 57... Re8+ {[%clk 0:00:04]} 58. Kf4
{[%clk 0:00:11.8]} 58... Bd3 {[%clk 0:00:03.1]} 59. Nf5 {[%clk 0:00:11.8]} 59...
Re4+ {[%clk 0:00:02.7]} 60. Kf3 {[%clk 0:00:12.4]} 60... Rxb4 {[%clk 0:00:03.6]}
61. h5 {[%clk 0:00:12.5]} 61... Be4+ {[%clk 0:00:02.5]} 62. Ke3 {[%clk
0:00:12.4]} 62... Bxf5 {[%clk 0:00:02.1]} 63. Rxf5 {[%clk 0:00:12.6]} 63... Rxg4
{[%clk 0:00:02.1]} 64. Rxf7+ {[%clk 0:00:12.5]} 64... Ka6 {[%clk 0:00:02]} 65.
Rf5 {[%clk 0:00:12.6]} 65... Rg8 {[%clk 0:00:01.2]} 66. Kf3 {[%clk 0:00:13.2]}
66... Rh8 {[%clk 0:00:01.3]} 67. Kf4 {[%clk 0:00:13.7]} 67... Rb8 {[%clk
0:00:01.6]} 68. Kg5 {[%clk 0:00:13.9]} 1-0

[Event "Early-Titled-Tuesday-Blitz-May-07-2024"]
[Site "Chess.com"]
[Date "2024.05.07"]
[Round "4"]
[White "thesupera12"]
[Black "GlavkonVVS"]
[Result "0-1"]
[WhiteElo "2453"]
[BlackElo "2661"]
[TimeControl "180+1"]
[EndTime "8:44:05 PDT"]
[Termination "GlavkonVVS won by resignation"]

1. e4 {[%clk 0:03:00.9]} 1... Nf6 {[%clk 0:02:59.3]} 2. e5 {[%clk 0:02:58.8]}
2... Nd5 {[%clk 0:02:59.1]} 3. Bc4 {[%clk 0:02:57.4]} 3... Nb6 {[%clk
0:02:58.9]} 4. Bb3 {[%clk 0:02:57.8]} 4... a5 {[%clk 0:02:57.4]} 5. a3 {[%clk
0:02:57.7]} 5... a4 {[%clk 0:02:57.3]} 6. Ba2 {[%clk 0:02:58.2]} 6... d6 {[%clk
0:02:56.8]} 7. exd6 {[%clk 0:02:58]} 7... exd6 {[%clk 0:02:53.2]} 8. Nf3 {[%clk
0:02:57.8]} 8... Be7 {[%clk 0:02:53.6]} 9. O-O {[%clk 0:02:57.4]} 9... O-O
{[%clk 0:02:53.8]} 10. h3 {[%clk 0:02:58.2]} 10... Bf6 {[%clk 0:02:48.4]} 11.
Nc3 {[%clk 0:02:57.5]} 11... d5 {[%clk 0:02:48.4]} 12. d4 {[%clk 0:02:57.1]}
12... Bf5 {[%clk 0:02:40.7]} 13. Bf4 {[%clk 0:02:55]} 13... c6 {[%clk
0:02:38.7]} 14. Qd2 {[%clk 0:02:50.8]} 14... Na6 {[%clk 0:02:36.4]} 15. Rfe1
{[%clk 0:02:49.3]} 15... Nc7 {[%clk 0:02:34]} 16. Be5 {[%clk 0:02:47.2]} 16...
Ne6 {[%clk 0:02:28.7]} 17. Nd1 {[%clk 0:02:37.9]} 17... Be4 {[%clk 0:02:20.7]}
18. Bxf6 {[%clk 0:01:59.3]} 18... Qxf6 {[%clk 0:02:19.7]} 19. Ne5 {[%clk
0:01:59.5]} 19... Rfd8 {[%clk 0:02:06.4]} 20. f3 {[%clk 0:01:57.4]} 20... Bf5
{[%clk 0:01:49.5]} 21. Ne3 {[%clk 0:01:52.7]} 21... Nc4 {[%clk 0:01:36]} 22.
Bxc4 {[%clk 0:01:29.6]} 22... dxc4 {[%clk 0:01:34.9]} 23. c3 {[%clk 0:01:22.8]}
23... Qxe5 {[%clk 0:01:30.6]} 24. dxe5 {[%clk 0:01:18.4]} 24... Rxd2 {[%clk
0:01:30.5]} 25. Nxf5 {[%clk 0:01:18.9]} 25... Rxb2 {[%clk 0:01:30.7]} 26. Rab1
{[%clk 0:01:13.9]} 26... Rb3 {[%clk 0:01:30.7]} 27. Nd6 {[%clk 0:01:11.9]} 27...
b5 {[%clk 0:01:30.3]} 28. Rbd1 {[%clk 0:00:59.7]} 28... Rxc3 {[%clk 0:01:27.3]}
29. Ne4 {[%clk 0:00:59.1]} 29... Rxa3 {[%clk 0:01:18.6]} 30. Rd7 {[%clk
0:00:59.7]} 30... Rd3 {[%clk 0:01:18.4]} 31. Nd6 {[%clk 0:00:55.3]} 31... a3
{[%clk 0:01:02.4]} 32. Ra1 {[%clk 0:00:48]} 32... b4 {[%clk 0:00:59.3]} 33. Rb7
{[%clk 0:00:45.9]} 33... b3 {[%clk 0:00:53.5]} 34. Nxc4 {[%clk 0:00:45.9]} 34...
a2 {[%clk 0:00:49.2]} 35. Nb2 {[%clk 0:00:35.2]} 35... Rc3 {[%clk 0:00:46.6]}
36. Na4 {[%clk 0:00:31.2]} 36... Rc4 {[%clk 0:00:38.9]} 37. Nb2 {[%clk
0:00:29.8]} 37... Rc2 {[%clk 0:00:37.3]} 38. Rxb3 {[%clk 0:00:28.3]} 38... Nd4
{[%clk 0:00:37.5]} 39. Rxa2 {[%clk 0:00:22.4]} 39... Re8 {[%clk 0:00:34.3]} 40.
Rd3 {[%clk 0:00:19.5]} 40... Ne2+ {[%clk 0:00:32.6]} 41. Kh2 {[%clk 0:00:18.6]}
41... Nf4 {[%clk 0:00:32.5]} 42. Rda3 {[%clk 0:00:17.9]} 42... Rxg2+ {[%clk
0:00:32]} 43. Kh1 {[%clk 0:00:18.5]} 43... g5 {[%clk 0:00:29.1]} 44. Nc4 {[%clk
0:00:15.1]} 44... Rg3 {[%clk 0:00:26.5]} 45. Nd6 {[%clk 0:00:13.4]} 45... Rxe5
{[%clk 0:00:24.7]} 46. Ra8+ {[%clk 0:00:12.4]} 46... Kg7 {[%clk 0:00:24.4]} 47.
Ne8+ {[%clk 0:00:11.7]} 47... Kh6 {[%clk 0:00:21.6]} 48. Kh2 {[%clk 0:00:12]}
48... Rxh3+ {[%clk 0:00:20.7]} 49. Kg1 {[%clk 0:00:11.8]} 49... Re1+ {[%clk
0:00:20.9]} 50. Kf2 {[%clk 0:00:11.9]} 50... Re2+ {[%clk 0:00:21]} 51. Rxe2
{[%clk 0:00:10.8]} 51... Rh2+ {[%clk 0:00:21.9]} 52. Kf1 {[%clk 0:00:10.7]}
52... Rxe2 {[%clk 0:00:22.3]} 53. Nf6 {[%clk 0:00:11.6]} 53... Kg6 {[%clk
0:00:22.3]} 54. Ng4 {[%clk 0:00:11.8]} 54... Re6 {[%clk 0:00:22.6]} 55. Kf2
{[%clk 0:00:11.7]} 55... h5 {[%clk 0:00:23]} 56. Ne3 {[%clk 0:00:11.8]} 56... c5
{[%clk 0:00:23]} 57. Ra5 {[%clk 0:00:11.9]} 57... Rc6 {[%clk 0:00:22.6]} 58. Nc4
{[%clk 0:00:12.3]} 58... f6 {[%clk 0:00:22.1]} 59. Ra8 {[%clk 0:00:11.1]} 59...
h4 {[%clk 0:00:22.4]} 60. Na5 {[%clk 0:00:10.7]} 60... Rb6 {[%clk 0:00:22.2]}
61. Nc4 {[%clk 0:00:11.3]} 61... Rb4 {[%clk 0:00:22.2]} 62. Nd6 {[%clk
0:00:11.7]} 62... Rb2+ {[%clk 0:00:22.3]} 63. Kf1 {[%clk 0:00:11.1]} 63... Rd2
{[%clk 0:00:22.2]} 64. Rg8+ {[%clk 0:00:11.5]} 64... Kh7 {[%clk 0:00:21.7]} 65.
Rd8 {[%clk 0:00:11.7]} 65... c4 {[%clk 0:00:21]} 66. Rc8 {[%clk 0:00:10.4]}
66... h3 {[%clk 0:00:19.1]} 67. Nf5 {[%clk 0:00:09.6]} 67... h2 {[%clk
0:00:18.1]} 68. Rc7+ {[%clk 0:00:09.8]} 68... Kg6 {[%clk 0:00:18]} 69. Rg7+
{[%clk 0:00:09.1]} 69... Kxf5 {[%clk 0:00:17.9]} 70. Rh7 {[%clk 0:00:09.8]}
70... c3 {[%clk 0:00:16.7]} 71. Ke1 {[%clk 0:00:09.7]} 71... Rg2 {[%clk
0:00:16.1]} 72. Kd1 {[%clk 0:00:08.7]} 72... Rg1+ {[%clk 0:00:15.1]} 73. Kc2
{[%clk 0:00:08.9]} 73... h1=Q {[%clk 0:00:15.7]} 74. Rxh1 {[%clk 0:00:08.4]}
74... Rxh1 {[%clk 0:00:16.6]} 75. Kb3 {[%clk 0:00:07.9]} 75... Rf1 {[%clk
0:00:17.5]} 76. Kc2 {[%clk 0:00:07.9]} 76... Rxf3 {[%clk 0:00:18.4]} 77. Kd1
{[%clk 0:00:08.4]} 77... g4 {[%clk 0:00:18.7]} 78. Ke1 {[%clk 0:00:09]} 78... g3
{[%clk 0:00:18.9]} 79. Kd1 {[%clk 0:00:08.6]} 79... Rf2 {[%clk 0:00:19.1]} 80.
Kc1 {[%clk 0:00:08.8]} 80... g2 {[%clk 0:00:19.7]} 0-1

[Event "Early-Titled-Tuesday-Blitz-May-07-2024"]
[Site "Chess.com"]
[Date "2024.05.07"]
[Round "4"]
[White "Casper"]
[Black "remyrushbrooke"]
[Result "1-0"]
[WhiteElo "2504"]
[BlackElo "2290"]
[TimeControl "180+1"]
[EndTime "8:44:05 PDT"]
[Termination "Casper won on time"]

1. e4 {[%clk 0:02:56.1]} 1... g6 {[%clk 0:03:00.3]} 2. g3 {[%clk 0:02:54.2]}
2... Bg7 {[%clk 0:03:00.2]} 3. Bg2 {[%clk 0:02:55.1]} 3... d6 {[%clk 0:03:00]}
4. d3 {[%clk 0:02:56]} 4... c5 {[%clk 0:02:59.9]} 5. Nf3 {[%clk 0:02:56.2]} 5...
Nc6 {[%clk 0:03:00.2]} 6. O-O {[%clk 0:02:56.3]} 6... Nf6 {[%clk 0:02:59.3]} 7.
c3 {[%clk 0:02:55.8]} 7... O-O {[%clk 0:02:54.9]} 8. Re1 {[%clk 0:02:56.7]} 8...
e5 {[%clk 0:02:52]} 9. Nbd2 {[%clk 0:02:56.2]} 9... d5 {[%clk 0:02:47.3]} 10. a4
{[%clk 0:02:55.3]} 10... d4 {[%clk 0:02:43.9]} 11. Nc4 {[%clk 0:02:53.5]} 11...
Re8 {[%clk 0:02:28.6]} 12. a5 {[%clk 0:02:46.4]} 12... Rb8 {[%clk 0:02:13.8]}
13. h3 {[%clk 0:02:41.7]} 13... b5 {[%clk 0:02:06]} 14. axb6 {[%clk 0:02:42.6]}
14... axb6 {[%clk 0:02:05.9]} 15. Kh2 {[%clk 0:02:40.9]} 15... b5 {[%clk
0:02:03.3]} 16. Na3 {[%clk 0:02:41.1]} 16... dxc3 {[%clk 0:01:35.2]} 17. bxc3
{[%clk 0:02:38.9]} 17... b4 {[%clk 0:01:35]} 18. Nc4 {[%clk 0:02:29]} 18... bxc3
{[%clk 0:01:29.5]} 19. Qc2 {[%clk 0:01:35]} 19... Nb4 {[%clk 0:01:28.9]} 20.
Qxc3 {[%clk 0:01:31.2]} 20... Qxd3 {[%clk 0:01:28.8]} 21. Qxd3 {[%clk
0:01:06.6]} 21... Nxd3 {[%clk 0:01:29.7]} 22. Re2 {[%clk 0:01:06.9]} 22... Nxc1
{[%clk 0:01:28.1]} 23. Rxc1 {[%clk 0:01:07.8]} 23... Ba6 {[%clk 0:01:24.8]} 24.
Ra2 {[%clk 0:01:00.4]} 24... Bxc4 {[%clk 0:01:20.4]} 25. Rxc4 {[%clk 0:01:01.3]}
25... Rb4 {[%clk 0:01:17.9]} 26. Rxc5 {[%clk 0:00:59.9]} 26... Nxe4 {[%clk
0:01:15.5]} 27. Rc7 {[%clk 0:00:53.6]} 27... Nd6 {[%clk 0:01:07]} 28. Ng5 {[%clk
0:00:41.9]} 28... h6 {[%clk 0:00:58.2]} 29. Nxf7 {[%clk 0:00:39.1]} 29... Nxf7
{[%clk 0:00:53.2]} 30. Bd5 {[%clk 0:00:39.8]} 30... Rf8 {[%clk 0:00:52.8]} 31.
Raa7 {[%clk 0:00:40.4]} 31... Rb2 {[%clk 0:00:40.9]} 32. Rxf7 {[%clk 0:00:39.6]}
32... Rxf7 {[%clk 0:00:33.5]} 33. Rxf7 {[%clk 0:00:40.5]} 33... Kh7 {[%clk
0:00:29.4]} 34. h4 {[%clk 0:00:39]} 34... Rd2 {[%clk 0:00:20.2]} 35. Be4 {[%clk
0:00:37.9]} 35... h5 {[%clk 0:00:18.6]} 36. Kg2 {[%clk 0:00:37.6]} 36... Re2
{[%clk 0:00:17.8]} 37. Kf3 {[%clk 0:00:38]} 37... Rb2 {[%clk 0:00:16.2]} 38. Ra7
{[%clk 0:00:38.2]} 38... Rb3+ {[%clk 0:00:15.8]} 39. Ke2 {[%clk 0:00:38]} 39...
Rb4 {[%clk 0:00:15.9]} 40. Kd3 {[%clk 0:00:37.4]} 40... Rd4+ {[%clk 0:00:15.9]}
41. Ke3 {[%clk 0:00:37.5]} 41... Rb4 {[%clk 0:00:15.6]} 42. Ra6 {[%clk 0:00:37]}
42... Rb3+ {[%clk 0:00:15.2]} 43. Ke2 {[%clk 0:00:37.6]} 43... Rb2+ {[%clk
0:00:15.2]} 44. Kf3 {[%clk 0:00:37.8]} 44... Rb3+ {[%clk 0:00:10.3]} 45. Kg2
{[%clk 0:00:38.2]} 45... Rb8 {[%clk 0:00:09.5]} 46. Bxg6+ {[%clk 0:00:35.4]}
46... Kh6 {[%clk 0:00:09.3]} 47. Be8+ {[%clk 0:00:34.1]} 47... Kh7 {[%clk
0:00:07.7]} 48. Bxh5 {[%clk 0:00:34.8]} 48... e4 {[%clk 0:00:06.6]} 49. Bg6+
{[%clk 0:00:34.6]} 49... Kh8 {[%clk 0:00:05.9]} 50. Bxe4 {[%clk 0:00:35.5]}
50... Rf8 {[%clk 0:00:05.7]} 51. f4 {[%clk 0:00:34.8]} 51... Bd4 {[%clk
0:00:05.5]} 52. h5 {[%clk 0:00:34.5]} 52... Kg7 {[%clk 0:00:05.9]} 53. g4 {[%clk
0:00:34.5]} 53... Rxf4 {[%clk 0:00:05.4]} 54. Bf5 {[%clk 0:00:33.1]} 54... Bf6
{[%clk 0:00:03.7]} 55. Kg3 {[%clk 0:00:29.4]} 55... Rb4 {[%clk 0:00:02.8]} 56.
g5 {[%clk 0:00:24.1]} 56... Rb3+ {[%clk 0:00:00.7]} 57. Kf2 {[%clk 0:00:19.3]}
57... Rb2+ {[%clk 0:00:00.6]} 58. Kf3 {[%clk 0:00:18.6]} 58... Rb3+ {[%clk
0:00:01.1]} 59. Ke4 {[%clk 0:00:19.3]} 59... Bxg5 {[%clk 0:00:01.3]} 60. Rg6+
{[%clk 0:00:19]} 60... Kf7 {[%clk 0:00:02]} 61. Rxg5 {[%clk 0:00:19.9]} 61...
Rb4+ {[%clk 0:00:02.2]} 62. Ke5 {[%clk 0:00:20.1]} 62... Rb5+ {[%clk 0:00:02.5]}
63. Kf4 {[%clk 0:00:20.7]} 63... Rb4+ {[%clk 0:00:02.8]} 64. Be4 {[%clk
0:00:21.2]} 64... Kf6 {[%clk 0:00:03.3]} 65. Rg6+ {[%clk 0:00:21.2]} 65... Kf7
{[%clk 0:00:03.4]} 66. Ra6 {[%clk 0:00:21.6]} 66... Kg7 {[%clk 0:00:03.5]} 67.
Ke5 {[%clk 0:00:21.1]} 67... Rb5+ {[%clk 0:00:02.4]} 68. Bd5 {[%clk 0:00:20.8]}
68... Rb4 {[%clk 0:00:02.8]} 69. Rg6+ {[%clk 0:00:20.9]} 69... Kh7 {[%clk
0:00:03.1]} 70. Be4 {[%clk 0:00:21.5]} 70... Rb5+ {[%clk 0:00:03]} 71. Kf4
{[%clk 0:00:21.9]} 71... Rxh5 {[%clk 0:00:02.7]} 72. Kg4 {[%clk 0:00:18.2]}
72... Rh1 {[%clk 0:00:02.6]} 73. Kf4 {[%clk 0:00:13.6]} 73... Rf1+ {[%clk
0:00:02.2]} 74. Ke5 {[%clk 0:00:12.9]} 74... Re1 {[%clk 0:00:02.7]} 75. Rg1+
{[%clk 0:00:12.5]} 1-0